fUST/lending_fUST_20251019
["ID","MTS","AMOUNT","RATE_DAILY","PERIOD"]
[391790466,1760821836592,-406.526501,0.000278,2]
[391790467,1760821836601,-199.85049113,0.000278,2]
[391790468,1760821836610,-273.8603625,0.000278,2]
[391790469,1760821836620,-840.27893163,0.000278,2]
[391790470,1760821836629,-212.667,0.00027875,18]
[391790471,1760821836638,-326.14999183,0.000281,2]
[391790472,1760821836648,-406.526501,0.000281,2]
[391790473,1760821836657,-199.85049113,0.000281,2]
[391790474,1760821836666,-273.8603625,0.000281,2]
[391790475,1760821836675,-840.27893163,0.000281,2]
[391790476,1760821836684,-285.0,0.00028302,2]
[391790477,1760821836693,-326.14999183,0.000284,2]
[391790478,1760821836703,-406.526501,0.000284,2]
[391790479,1760821836712,-199.85049113,0.000284,2]
[391790480,1760821836721,-273.8603625,0.000284,2]
[391790481,1760821836730,-840.27893163,0.000284,2]
[391790482,1760821836740,-307.5,0.00028902,2]
[391790483,1760821836749,-404.12,0.00029329,2]
[391790484,1760821836758,-269.14,0.00029329,2]
[391790485,1760821836769,-364.96,0.00029419,2]
[391790486,1760821836778,-330.0,0.00029502,2]
[391790487,1760821836787,-420.0,0.00029503,2]
[391790488,1760821836797,-280.3251429,0.00029785,2]
[391790489,1760821836807,-352.5,0.00030102,2]
[391790490,1760821836816,-375.0,0.00030702,2]
[391790491,1760821836826,-397.5,0.00031302,2]
[391790492,1760821836835,-437.96,0.00031381,2]
[391790493,1760821836844,-587.0,0.00031886,2]
[391790494,1760821836854,-280.3251429,0.00032371,2]
[391790495,1760821836863,-510.95,0.00033342,2]
[391790496,1760821836872,-631.0,0.00033576,2]
[391790497,1760821836881,-2162.0,0.00033576,2]
[391790498,1760821836891,-150.0,0.0003399,2]
[391790499,1760821836900,-823.0,0.00034462,2]
[391790500,1760821836909,-280.3251429,0.00034957,2]
[391790501,1760821836919,-199.0,0.0003506,39]
[391790502,1760821836928,-583.94,0.00035303,2]
[391790503,1760821836938,-157.987874,0.00035865,2]
[391790504,1760821836947,-500.0,0.000361,5]
[391790505,1760821836958,-500.0,0.00036422,30]
[391790506,1760821836967,-445.1983907,0.00036576,2]
[391790511,1760821838373,-185.8016093,0.00036576,2]
[391790512,1760821838383,-270.375,0.00036576,2]
[391790513,1760821838392,-349.97205228,0.00036729,7]
[391790514,1760821838403,-259.0,0.00036843,2]
[391790515,1760821838413,-1152.0,0.00037246,2]
[391790516,1760821838423,-656.93,0.00037265,2]
[391790517,1760821838432,-258.0,0.00037494,7]
[391790518,1760821838442,-500.0,0.0003751,30]
[391790519,1760821838451,-280.3251429,0.00037542,2]
[391790520,1760821838460,-500.0,0.00038,5]
[391790521,1760821838470,-1400.0,0.00038082,7]
[391790522,1760821838479,-172.51,0.000382,20]
[391790524,1760821838489,-258.0,0.00038299,2]
[391790526,1760821838499,-197.08871229,0.000384,120]
[391790528,1760821838508,-217.36813426,0.000384,2]
[391790530,1760821838519,-382.63186574,0.000384,2]
[391790531,1760821838529,-3817.68940595,0.000384,2]
[391790532,1760821838538,-258.0,0.00038438,120]
[391790533,1760821838548,-168.0,0.00038455,2]
[391790534,1760821838557,-2535.45275638,0.00038489,120]
[391790535,1760821838648,518.67995673,0.00033994,120]
[391790559,1760821843716,-320.87724362,0.00038489,120]
[391790560,1760821843726,-41813.2231386,0.0003849,3]
[391790561,1760821843736,-27983.5164643,0.0003849,3]
[391790562,1760821843745,-370000.0,0.000385,2]
[391790563,1760821843755,-500.0,0.000385,15]
[391790564,1760821843764,-5973.31759123,0.000385,3]
[391790565,1760821843775,-3997.64520919,0.000385,3]
[391790566,1760821843784,-553.64373807,0.0003851,4]
[391790567,1760821843794,-574.12855637,0.0003851,4]
[391790568,1760821843803,-595.37131296,0.0003851,4]
[391790569,1760821843812,-617.40005154,0.0003851,4]
[391790570,1760821843822,-640.24385345,0.0003851,4]
[391790571,1760821843831,-663.93287602,0.0003851,4]
[391790572,1760821843840,-688.49839244,0.0003851,4]
[391790573,1760821843850,-713.97283296,0.0003851,4]
[391790574,1760821843859,-740.38982778,0.0003851,4]
[391790575,1760821843868,-767.7842514,0.0003851,4]
[391790576,1760821843879,-796.19226871,0.0003851,4]
[391790577,1760821843888,-825.65138265,0.0003851,4]
[391790578,1760821843898,-75184.21100869,0.00038511,4]
[391790588,1760821846657,-357.83959479,0.00038511,4]
[391790599,1760821850175,500.0,0.00033994,120]
[391790600,1760821850415,176.67437422,0.00033994,120]
[391790602,1760821902338,500.0,0.00033994,120]
[391790603,1760821902612,500.0,0.00033994,120]
[391790604,1760821903083,500.0,0.00033994,120]
[391790605,1760821903545,500.0,0.00033994,120]
[391790606,1760821903787,500.0,0.00033994,120]
[391790607,1760821904029,500.0,0.00033994,120]
[391790608,1760821916503,500.0,0.00033994,120]
[391790609,1760821916745,500.0,0.00033994,120]
[391790610,1760821916995,332.93294265,0.00033994,120]
[391790611,1760821929923,169.0,0.00024,120]
[391790612,1760821948047,150.0,0.0002131,2]
[391790613,1760821948464,150.0,0.00023247,2]
[391790614,1760821964760,500.0,0.00033994,120]
[391790615,1760821965009,500.0,0.00033994,120]
[391790616,1760821965261,492.74072063,0.00033994,120]
[391790617,1760821980420,500.0,0.00033994,120]
[391790618,1760821980678,500.0,0.00033994,120]
[391790619,1760821980915,500.0,0.00033994,120]
[391790620,1760821981154,500.0,0.00033994,120]
[391790621,1760821981387,500.0,0.00033994,120]
[391790622,1760821981650,500.0,0.00033994,120]
[391790623,1760822002712,500.0,0.00033994,120]
[391790624,1760822002885,500.0,0.00033994,120]
[391790625,1760822003132,500.0,0.00033994,120]
[391790626,1760822003416,500.0,0.00033994,120]
[391790627,1760822003654,500.0,0.00033994,120]
[391790628,1760822003908,500.0,0.00033994,120]
[391790629,1760822004160,500.0,0.00033994,120]
[391790630,1760822004398,500.0,0.00033994,120]
[391790631,1760822004646,500.0,0.00033994,120]
[391790632,1760822004894,500.0,0.00033994,120]
[391790633,1760822005159,500.0,0.00033994,120]
[391790634,1760822005412,500.0,0.00033994,120]
[391790635,1760822005687,500.0,0.00033994,120]
[391790636,1760822005917,427.24,0.00033994,120]
[391790637,1760822013310,500.0,0.00033994,120]
[391790638,1760822013458,500.0,0.00033994,120]
[391790639,1760822013541,500.0,0.00033994,120]
[391790640,1760822013693,500.0,0.00033994,120]
[391790641,1760822013775,500.0,0.00033994,120]
[391790642,1760822013934,500.0,0.00033994,120]
[391790643,1760822014023,500.0,0.00033994,120]
[391790644,1760822014178,500.0,0.00033994,120]
[391790645,1760822014262,500.0,0.00033994,120]
[391790646,1760822014425,500.0,0.00033994,120]
[391790647,1760822014503,500.0,0.00033994,120]
[391790648,1760822014991,500.0,0.00033994,120]
[391790649,1760822015252,500.0,0.00033994,120]
[391790650,1760822015485,500.0,0.00033994,120]
[391790651,1760822015725,500.0,0.00033994,120]
[391790652,1760822015972,500.0,0.00033994,120]
[391790653,1760822016242,500.0,0.00033994,120]
[391790654,1760822016503,500.0,0.00033994,120]
[391790655,1760822016747,500.0,0.00033994,120]
[391790656,1760822017000,500.0,0.00033994,120]
[391790657,1760822017248,500.0,0.00033936,120]
[391790658,1760822017491,500.0,0.00033936,120]
[391790659,1760822017751,500.0,0.00033936,120]
[391790660,1760822017977,500.0,0.00033936,120]
[391790661,1760822018379,500.0,0.00033936,120]
[391790662,1760822018516,500.0,0.00033936,120]
[391790663,1760822018756,500.0,0.00033936,120]
[391790664,1760822018985,500.0,0.00033936,120]
[391790665,1760822019221,500.0,0.00033936,120]
[391790666,1760822019459,432.38,0.00033936,120]
[391790667,1760822023140,150.0,0.00021403,2]
[391790668,1760822023496,150.0,0.00023349,2]
[391790669,1760822097521,150.0,0.00021834,2]
[391790670,1760822097973,150.0,0.00023819,2]
[391790671,1760822172674,150.0,0.00021516,2]
[391790672,1760822172919,150.0,0.00023472,2]
[391790673,1760822192170,500.0,0.00033936,120]
[391790674,1760822192407,500.0,0.00033936,120]
[391790675,1760822192665,500.0,0.00033936,120]
[391790676,1760822192901,500.0,0.00033936,120]
[391790677,1760822193178,500.0,0.00033936,120]
[391790678,1760822193396,500.0,0.00033936,120]
[391790679,1760822200524,500.0,0.00033936,120]
[391790680,1760822200790,500.0,0.00033936,120]
[391790681,1760822201027,500.0,0.00033936,120]
[391790682,1760822201310,500.0,0.00033936,120]
[391790683,1760822201552,500.0,0.00033936,120]
[391790684,1760822201781,298.43039693,0.00033936,120]
[391790685,1760822249514,150.0,0.00021311,2]
[391790686,1760822249929,150.0,0.00023248,2]
[391790687,1760822252087,500.0,0.00033936,120]
[391790688,1760822252335,500.0,0.00033936,120]
[391790689,1760822252563,500.0,0.00033936,120]
[391790690,1760822252792,500.0,0.00033936,120]
[391790691,1760822253037,500.0,0.00033936,120]
[391790692,1760822253442,500.0,0.00033936,120]
[391790693,1760822253677,500.0,0.00033936,120]
[391790694,1760822297798,500.0,0.00033936,120]
[391790695,1760822298045,500.0,0.00033936,120]
[391790696,1760822298287,500.0,0.00033936,120]
[391790697,1760822298720,500.0,0.00033936,120]
[391790698,1760822298807,500.0,0.00033936,120]
[391790699,1760822299051,500.0,0.00033936,120]
[391790700,1760822299297,438.39594678,0.00033936,120]
[391790701,1760822326432,150.0,0.00022117,2]
[391790702,1760822326868,150.0,0.00024127,2]
[391790703,1760822327769,500.0,0.00033935,120]
[391790704,1760822328005,356.96521394,0.00033935,120]
[391790705,1760822329168,500.0,0.00033935,120]
[391790706,1760822329407,500.0,0.00033935,120]
[391790707,1760822329659,500.0,0.00033935,120]
[391790708,1760822330033,500.0,0.00033935,120]
[391790709,1760822330280,300.53073079,0.00033935,120]
[391790710,1760822336393,500.0,0.00033935,120]
[391790711,1760822336624,500.0,0.00033935,120]
[391790712,1760822336905,500.0,0.00033935,120]
[391790713,1760822337146,500.0,0.00033935,120]
[391790714,1760822337374,566.79493241,0.00033935,120]
[391790715,1760822356682,417.15472785,0.0002415,2]
[391790716,1760822402039,150.0,0.0002149,2]
[391790717,1760822402464,150.0,0.00023444,2]
[391790718,1760822475883,150.0,0.00021469,2]
[391790719,1760822476290,150.0,0.00023421,2]
[391790720,1760822534987,500.0,0.00033935,120]
[391790721,1760822535263,500.0,0.00033935,120]
[391790722,1760822535490,500.0,0.00033935,120]
[391790723,1760822535731,287.246039,0.00033935,120]
[391790724,1760822548388,150.0,0.00021446,2]
[391790725,1760822548821,150.0,0.00023396,2]
[391790726,1760822621426,150.0,0.00021567,2]
[391790727,1760822621843,150.0,0.00023527,2]
[391790728,1760822640787,500.0,0.00033936,120]
[391790729,1760822641049,500.0,0.00033936,120]
[391790730,1760822641299,500.0,0.00033936,120]
[391790731,1760822641525,500.0,0.00033936,120]
[391790732,1760822641775,500.0,0.00033936,120]
[391790733,1760822642024,500.0,0.00033936,120]
[391790734,1760822645383,500.0,0.00033936,120]
[391790735,1760822645623,500.0,0.00033936,120]
[391790736,1760822645870,222.7847168,0.00033936,120]
[391790737,1760822665489,500.0,0.00033936,120]
[391790738,1760822665718,500.0,0.00033936,120]
[391790739,1760822665950,328.87294985,0.00033936,120]
[391790740,1760822698943,500.0,0.00033936,120]
[391790741,1760822699179,500.0,0.00033936,120]
[391790742,1760822699413,500.0,0.00033936,120]
[391790743,1760822699651,500.0,0.00033936,120]
[391790744,1760822699885,500.0,0.00033936,120]
[391790745,1760822700119,500.0,0.00033936,120]
[391790767,1760822920606,4934.20807219,0.00024142,2]
[391790768,1760822920629,10000.01,0.00024142,2]
[391790769,1760822920650,10000.01,0.00024142,2]
[391790771,1760822922528,-3962.66,0.00024142,2]
[391790772,1760822922558,-10000.01,0.00024142,2]
[391790773,1760822922611,-1103.14192781,0.00024142,2]
[391790968,1760823037516,-404.2973533,0.00025,15]
[391790986,1760823039815,-947.53008792,0.00025,15]
[391790987,1760823039824,-193.70521364,0.000275,2]
[391790988,1760823039833,-1000.0,0.00030102,14]
[391790989,1760823039842,-1001.40013897,0.00030102,14]
[391790990,1760823039852,-446.653505,0.00032378,2]
[391790991,1760823039862,-495.840245,0.00032588,120]
[391790992,1760823039871,-400.0,0.00032876,2]
[391790993,1760823039879,-185.67456084,0.00032877,2]
[391790994,1760823039888,-329.0,0.00033935,60]
[391790995,1760823039897,-2586.03903928,0.00033936,60]
[391790996,1760823039908,-507.34145989,0.00033936,60]
[391790999,1760823042730,-1906.61950083,0.00033936,60]
[391791000,1760823042740,-153.32722346,0.00033936,2]
[391791001,1760823042749,-178.00024399,0.00033936,2]
[391791002,1760823042760,-322.61475654,0.00033936,2]
[391791003,1760823042769,-500.0,0.00033936,14]
[391791004,1760823042780,-500.0,0.00033936,14]
[391791005,1760823042789,-500.0,0.00033936,14]
[391791006,1760823042798,-500.0,0.00033936,14]
[391791007,1760823042808,-500.0,0.00033936,14]
[391791008,1760823042818,-500.0,0.00033936,14]
[391791009,1760823042827,-500.0,0.00033936,3]
[391791010,1760823042836,-0.30586206,0.00033936,3]
[391791011,1760823044266,150.0,0.00022953,2]
[391791014,1760823045914,-150.0,0.00025039,2]
[391791015,1760823045924,-150.0,0.00027126,2]
[391791016,1760823045934,-150.0,0.00029212,2]
[391791017,1760823045948,-499.69413794,0.00033936,3]
[391791018,1760823045958,-500.0,0.00033936,3]
[391791019,1760823045967,-500.0,0.00033936,3]
[391791020,1760823045980,-500.0,0.00033936,3]
[391791021,1760823045989,-500.0,0.00033936,3]
[391791022,1760823045998,-621.56405397,0.00033936,2]
[391791023,1760823046007,-2494.76650696,0.00033936,7]
[391791024,1760823046019,-169.0,0.000346,120]
[391791025,1760823046028,-4201.0,0.00034614,2]
[391791026,1760823046037,-160.0,0.00034746,3]
[391791027,1760823046046,-762.31476136,0.00034849,120]
[391791028,1760823046055,-500.89976335,0.00035132,2]
[391791029,1760823046065,-631.0,0.00035133,2]
[391791030,1760823046076,-560.0,0.00035328,2]
[391791031,1760823046085,-500.0,0.000361,5]
[391791032,1760823046095,-160.0,0.00036767,4]
[391791033,1760823046104,-265.6534441,0.00036822,30]
[391791034,1760823046114,-168.0,0.0003685,2]
[391791035,1760823046123,-166.43620701,0.00036912,2]
[391791036,1760823046132,-10374.09234341,0.0003699,2]
[391791037,1760823046141,-25751.10156852,0.0003749,10]
[391791038,1760823116089,150.0,0.00021689,2]
[391791039,1760823116482,150.0,0.00023661,2]
[391791041,1760823485392,500.0,0.00033937,120]
[391791042,1760823485648,500.0,0.00033937,120]
[391791045,1760824006062,422.868399,0.00013699,2]
[391791046,1760824006258,422.868399,0.00020187,2]
[391791047,1760824017938,5000.0,0.00024142,2]
[391791048,1760824136490,150.0,0.00021387,2]
[391791049,1760824136897,150.0,0.00023331,2]
[391791050,1760824177289,417.15472785,0.00024142,2]
[391791051,1760824210604,150.0,0.00021353,2]
[391791052,1760824210966,150.0,0.00023295,2]
[391791104,1760824232007,-261.9,0.00024456,2]
[391791106,1760824232017,-150.0,0.00024456,2]
[391791108,1760824232026,-172.5,0.00025056,2]
[391791111,1760824232035,-115.90787319,0.00025236,2]
[391791710,1760824246082,-38.81212681,0.00025236,2]
[391791711,1760824246092,-262.5,0.00025656,2]
[391791712,1760824246101,-422.868399,0.00026676,2]
[391791713,1760824246111,-184.93285633,0.000271,2]
[391791714,1760824246120,-206.29,0.00027177,2]
[391791715,1760824246130,-257.87,0.00029118,2]
[391791716,1760824246139,-184.93285631,0.00030154,2]
[391791717,1760824246149,-309.44,0.0003106,2]
[391791718,1760824246159,-13746.68244503,0.00032,30]
[391791719,1760824284724,150.0,0.00021429,2]
[391791720,1760824285134,265.37,0.00023377,2]
[391791721,1760824362895,65.46461853,0.00021951,2]
[391791722,1760824362919,84.53538147,0.00021951,2]
[391791723,1760824363331,254.8,0.00023947,2]
[391791724,1760824441063,150.0,0.00021921,2]
[391791725,1760824441469,244.5,0.00023914,2]
[391791726,1760824519943,150.0,0.0002186,2]
[391791727,1760824520349,234.45,0.00023847,2]
[391791728,1760824598830,150.0,0.00021859,2]
[391791729,1760824599353,224.67,0.00023846,2]
[391791730,1760824677739,150.0,0.00021611,2]
[391791731,1760824678322,215.13,0.00023575,2]
[391791734,1760824757516,150.0,0.00020962,2]
[391791735,1760824757928,205.84,0.00022868,2]
[391791736,1760824837600,150.0,0.00021698,2]
[391791737,1760824838021,196.78,0.0002367,2]
[391791738,1760824917703,150.0,0.00021144,2]
[391791739,1760824918136,187.95,0.00023066,2]
[391791740,1760824996996,150.0,0.00020959,2]
[391791741,1760824997408,179.35,0.00022864,2]
[391791742,1760825076321,150.0,0.00020872,2]
[391791743,1760825076726,170.97,0.0002277,2]
[391791744,1760825154156,150.0,0.00019923,2]
[391791745,1760825154647,162.8,0.00020872,2]
[391791746,1760825155560,244.19,0.00021821,2]
[391791747,1760825156019,325.59,0.0002277,2]
[391791748,1760825156441,406.99,0.00023718,2]
[391791749,1760825233083,150.0,0.00019934,2]
[391791750,1760825233498,150.0,0.00020883,2]
[391791751,1760825233969,194.95,0.00021832,2]
[391791752,1760825234396,259.94,0.00022781,2]
[391791753,1760825234811,324.92,0.00023731,2]
[391791754,1760825280097,154.55,0.00015135,2]
[391791755,1760825308658,150.0,0.00019963,2]
[391791756,1760825309057,150.0,0.00020913,2]
[391791757,1760825309453,153.73,0.00021864,2]
[391791758,1760825309863,204.97,0.00022814,2]
[391791759,1760825310368,256.21,0.00023765,2]
[391791760,1760825381402,150.0,0.00019928,2]
[391791761,1760825381879,150.0,0.00020877,2]
[391791762,1760825382298,150.0,0.00021826,2]
[391791763,1760825382754,158.39,0.00022774,2]
[391791764,1760825383196,197.99,0.00023723,2]
[391791881,1760825437884,-237.58,0.00024672,2]
[391791882,1760825437894,-150.0,0.00024672,2]
[391791883,1760825437903,-172.5,0.00025272,2]
[391791884,1760825437913,-277.18,0.00025621,2]
[391791885,1760825437923,-184.93285631,0.000257,2]
[391791886,1760825437932,-195.0,0.00025872,2]
[391791887,1760825437942,-217.5,0.00026472,2]
[391791888,1760825437953,-316.78,0.0002657,2]
[391791889,1760825437963,-240.0,0.00027072,2]
[391791890,1760825437972,-722.71034972,0.000275,2]
[391791891,1760825437982,-189.73933637,0.000275,2]
[391791892,1760825437992,-188.25505604,0.000275,2]
[391791894,1760825438001,-356.38,0.00027519,2]
[391791896,1760825438011,-262.5,0.00027672,2]
[391791898,1760825438021,-300.0,0.00027699,2]
[391791899,1760825438031,-722.71034972,0.000277,2]
[391791900,1760825438040,-189.73933637,0.000277,2]
[391791901,1760825438050,-188.25505604,0.000277,2]
[391791902,1760825438060,-722.71034972,0.00028,2]
[391791903,1760825438069,-189.73933637,0.00028,2]
[391791904,1760825438079,-188.25505604,0.00028,2]
[391791905,1760825438088,-285.0,0.00028272,2]
[391791906,1760825438102,-722.71034972,0.000283,2]
[391791907,1760825438111,-189.73933637,0.000283,2]
[391791908,1760825438121,-395.97,0.00028468,2]
[391791909,1760825438130,-722.71034972,0.000286,2]
[391791910,1760825438140,-307.5,0.00028872,2]
[391791911,1760825438149,-330.0,0.00029472,2]
[391791912,1760825438159,-383.33594471,0.00029924,2]
[391791913,1760825438171,-36.66405529,0.00029924,2]
[391791914,1760825438182,-300.0,0.0003,120]
[391791915,1760825438191,-352.5,0.00030072,2]
[391791916,1760825438201,-352.5,0.00030074,2]
[391791917,1760825438210,-375.0,0.00030672,2]
[391791918,1760825438220,-397.5,0.00031272,2]
[391791919,1760825438230,-150.0,0.00031617,30]
[391791920,1760825438240,-420.0,0.00031872,2]
[391791921,1760825438249,-550.30787319,0.00031891,30]
[391791922,1760825438259,-14941.36822953,0.00032,30]
[391792019,1760825451053,150.0,0.00022228,2]
[391792020,1760825451488,150.0,0.00023287,2]
[391792021,1760825599741,150.0,0.0002004,2]
[391792022,1760825600216,209.5,0.00020994,2]
[391792023,1760825600621,314.25,0.00021948,2]
[391792024,1760825601028,419.0,0.00022903,2]
[391792025,1760825601430,523.74,0.00023857,2]
[391792026,1760825678072,150.0,0.0002002,2]
[391792027,1760825678474,139.32461853,0.00020974,2]
[391792028,1760825678498,29.02538147,0.00020974,2]
[391792029,1760825678878,252.53,0.00021927,2]
[391792030,1760825679297,336.7,0.00022881,2]
[391792031,1760825679693,420.88,0.00023834,2]
[391792032,1760825755000,150.0,0.00020029,2]
[391792033,1760825755413,150.0,0.00020983,2]
[391792034,1760825755914,201.8,0.00021937,2]
[391792035,1760825756484,269.07,0.0002289,2]
[391792036,1760825756906,336.34,0.00023844,2]
[391792037,1760825830601,150.0,0.00020024,2]
[391792038,1760825830967,150.0,0.00020977,2]
[391792039,1760825831391,159.53,0.00021931,2]
[391792040,1760825831866,212.7,0.00022884,2]
[391792041,1760825832361,265.88,0.00023838,2]
[391792042,1760825906229,150.0,0.000201,2]
[391792043,1760825906629,150.0,0.00021057,2]
[391792044,1760825907043,150.0,0.00022014,2]
[391792045,1760825907465,164.95,0.00022971,2]
[391792046,1760825907876,206.18,0.00023928,2]
[391792047,1760825977415,150.0,0.00020231,2]
[391792048,1760825977835,150.0,0.00021194,2]
[391792049,1760825978269,150.0,0.00022158,2]
[391792050,1760825978692,150.0,0.00023121,2]
[391792051,1760825979120,153.93,0.00024084,2]
[391792052,1760825997795,417.15472785,0.0002415,2]
[391792053,1760826153559,169.0,0.00025712,120]
[391792054,1760826154945,169.0,0.00026998,120]
[391792055,1760826156347,169.0,0.00028347,120]
[391792125,1760826517680,500.0,0.0002,2]
[391792126,1760826520912,7507.79527215,0.00024142,2]
[391792127,1760826520936,10000.01,0.00024142,2]
[391792128,1760826520960,10000.01,0.00024142,2]
[391792129,1760826529248,150.0,0.00019574,2]
[391792130,1760826533375,-4035.47491539,0.00024142,2]
[391792131,1760826535332,272.06551196,0.00024142,2]
[391792159,1760826632246,-300.0,0.00024649,2]
[391792161,1760826632255,-682.0,0.00024649,2]
[391792163,1760826632265,-125.41489492,0.0002465,2]
[391792168,1760826632307,-43755.23259306,0.0002465,2]
[391792796,1760826653481,150.0,0.00021406,2]
[391792797,1760826653878,150.0,0.00022426,2]
[391792798,1760826654428,214.65,0.00023445,2]
[391792799,1760826731516,150.0,0.00021248,2]
[391792800,1760826731919,150.0,0.0002226,2]
[391792801,1760826732320,195.0,0.00023272,2]
[391792804,1760826808629,151.1,0.00019902,2]
[391792805,1760826809037,302.2,0.0002085,2]
[391792806,1760826809460,194.04465726,0.00021797,2]
[391792807,1760826809484,259.24534274,0.00021797,2]
[391792808,1760826810379,604.39,0.00022745,2]
[391792809,1760826810829,755.49,0.00023693,2]
[391792810,1760826839685,1376.3525931,0.00023838,2]
[391792811,1760826888008,150.0,0.00019904,2]
[391792812,1760826888410,244.5,0.00020852,2]
[391792813,1760826888892,366.76,0.000218,2]
[391792814,1760826889295,489.01,0.00022748,2]
[391792815,1760826889719,611.26,0.00023696,2]
[391792816,1760826950460,100000.0,0.00033936,60]
[391792817,1760826966121,150.0,0.0001993,2]
[391792818,1760826966533,197.12,0.00020879,2]
[391792819,1760826966984,295.68,0.00021828,2]
[391792820,1760826967431,394.24,0.00022777,2]
[391792821,1760826967867,492.8,0.00023726,2]
[391792822,1760827042611,150.0,0.00019916,2]
[391792823,1760827043039,172.26,0.00020865,2]
[391792824,1760827043436,258.39,0.00021813,2]
[391792825,1760827043852,344.53,0.00022762,2]
[391792826,1760827044287,430.66,0.0002371,2]
[391792827,1760827117278,150.0,0.00019932,2]
[391792828,1760827117707,171.6,0.00020881,2]
[391792829,1760827118175,257.4,0.0002183,2]
[391792830,1760827119144,343.2,0.00022779,2]
[391792831,1760827119600,429.0,0.00023729,2]
[391792832,1760827157724,185.409303,0.00023646,2]
[391792833,1760827192410,150.0,0.00019934,2]
[391792834,1760827192847,175.77,0.00020884,2]
[391792835,1760827193341,263.65,0.00021833,2]
[391792836,1760827193762,131.29276116,0.00022782,2]
[391792837,1760827193794,220.24723884,0.00022782,2]
[391792838,1760827194210,439.42,0.00023731,2]
[391792839,1760827269753,150.0,0.00019934,2]
[391792840,1760827270182,150.0,0.00020883,2]
[391792841,1760827270575,217.43,0.00021833,2]
[391792842,1760827271000,289.91,0.00022782,2]
[391792843,1760827271428,362.38,0.00023731,2]
[391792844,1760827335775,150.6421314,0.00023714,2]
[391792845,1760827346021,150.0,0.00019937,2]
[391792846,1760827346447,150.0,0.00020886,2]
[391792847,1760827347388,178.5,0.00021836,2]
[391792848,1760827347835,237.99,0.00022785,2]
[391792849,1760827348249,297.49,0.00023734,2]
[391792850,1760827421641,150.0,0.00019934,2]
[391792851,1760827422050,150.0,0.00020884,2]
[391792852,1760827422627,163.28,0.00021833,2]
[391792853,1760827423082,217.7,0.00022782,2]
[391792854,1760827423614,272.13,0.00023731,2]
[391792855,1760827498213,150.0,0.00019952,2]
[391792856,1760827498687,150.0,0.00020902,2]
[391792857,1760827499248,150.0,0.00021852,2]